[Event "Early-Titled-Tuesday-Blitz-April-16-2024"]
[Site "Chess.com"]
[Date "2024.04.16"]
[Round "10"]
[White "SahibSinghKnight"]
[Black "Kirill_Klukin"]
[Result "0-1"]
[WhiteElo "2645"]
[BlackElo "2829"]
[TimeControl "180+1"]
[EndTime "10:01:16 PDT"]
[Termination "Kirill_Klukin won by resignation"]

1. e4 {[%clk 0:03:00.9]} 1... c5 {[%clk 0:03:00.1]} 2. Nf3 {[%clk 0:03:00.8]}
2... Nc6 {[%clk 0:03:00.4]} 3. d4 {[%clk 0:03:00.9]} 3... cxd4 {[%clk
0:03:01.1]} 4. Nxd4 {[%clk 0:03:01.8]} 4... e5 {[%clk 0:03:01.9]} 5. Nb5 {[%clk
0:03:01.3]} 5... d6 {[%clk 0:03:02.2]} 6. N1c3 {[%clk 0:03:01.2]} 6... a6 {[%clk
0:03:01.8]} 7. Na3 {[%clk 0:03:01.9]} 7... b5 {[%clk 0:03:02.5]} 8. Nd5 {[%clk
0:03:02.2]} 8... Nge7 {[%clk 0:03:03.3]} 9. c4 {[%clk 0:03:00.8]} 9... Nxd5
{[%clk 0:03:03.3]} 10. exd5 {[%clk 0:02:59.3]} 10... Nd4 {[%clk 0:03:03.4]} 11.
Bd3 {[%clk 0:02:57]} 11... Be7 {[%clk 0:03:01.1]} 12. O-O {[%clk 0:02:55.9]}
12... Bd7 {[%clk 0:02:47.9]} 13. Be3 {[%clk 0:02:48.4]} 13... Nf5 {[%clk
0:02:34.4]} 14. Bd2 {[%clk 0:02:44]} 14... bxc4 {[%clk 0:02:31.2]} 15. Nxc4
{[%clk 0:02:44.3]} 15... O-O {[%clk 0:02:31.8]} 16. Ba5 {[%clk 0:02:43.1]} 16...
Qe8 {[%clk 0:02:23.3]} 17. Nb6 {[%clk 0:02:41]} 17... Ra7 {[%clk 0:02:20.6]} 18.
Nxd7 {[%clk 0:02:34.2]} 18... Qxd7 {[%clk 0:02:20.3]} 19. Qb1 {[%clk 0:02:21.8]}
19... g6 {[%clk 0:02:08.7]} 20. Bxf5 {[%clk 0:02:21.2]} 20... Qxf5 {[%clk
0:02:05.7]} 21. Qxf5 {[%clk 0:02:20.9]} 21... gxf5 {[%clk 0:02:06.6]} 22. Rac1
{[%clk 0:02:20.4]} 22... Rb8 {[%clk 0:02:03.4]} 23. b4 {[%clk 0:02:19.2]} 23...
Bd8 {[%clk 0:01:46.3]} 24. Rc6 {[%clk 0:02:17.9]} 24... Bxa5 {[%clk 0:01:29.6]}
25. bxa5 {[%clk 0:02:17.5]} 25... Rb5 {[%clk 0:01:30.3]} 26. Rxd6 {[%clk
0:02:17.7]} 26... Rxa5 {[%clk 0:01:30.7]} 27. Rd8+ {[%clk 0:02:10.7]} 27... Kg7
{[%clk 0:01:30.7]} 28. Rd1 {[%clk 0:02:10.6]} 28... Rb7 {[%clk 0:01:23.5]} 29.
g4 {[%clk 0:01:41.6]} 29... Rab5 {[%clk 0:00:59.5]} 30. Kg2 {[%clk 0:01:17.3]}
30... Rb1 {[%clk 0:00:52.4]} 31. Rd3 {[%clk 0:00:56.7]} 31... e4 {[%clk
0:00:49.3]} 32. Rd4 {[%clk 0:00:53.9]} 32... R7b4 {[%clk 0:00:46.3]} 33. Rxb4
{[%clk 0:00:51.6]} 33... Rxb4 {[%clk 0:00:47.2]} 34. gxf5 {[%clk 0:00:52.4]}
34... Kf6 {[%clk 0:00:47.4]} 35. Rd6+ {[%clk 0:00:51.7]} 35... Kxf5 {[%clk
0:00:45.5]} 36. Rxa6 {[%clk 0:00:52.3]} 36... Rd4 {[%clk 0:00:40.3]} 37. Rh6
{[%clk 0:00:51.6]} 37... Ke5 {[%clk 0:00:31.5]} 38. Rxh7 {[%clk 0:00:50.9]}
38... f5 {[%clk 0:00:32.1]} 39. Re7+ {[%clk 0:00:48.4]} 39... Kf4 {[%clk
0:00:31.5]} 40. Rd7 {[%clk 0:00:38.4]} 40... Rd2 {[%clk 0:00:31.6]} 41. Re7
{[%clk 0:00:32.4]} 41... Rxd5 {[%clk 0:00:27.9]} 42. Ra7 {[%clk 0:00:29.1]}
42... Rd2 {[%clk 0:00:27.7]} 43. Ra3 {[%clk 0:00:28.8]} 43... Rb2 {[%clk
0:00:24.1]} 44. h3 {[%clk 0:00:24.8]} 44... Rc2 {[%clk 0:00:23.6]} 45. Kf1
{[%clk 0:00:22]} 45... Rb2 {[%clk 0:00:19.7]} 46. Kg2 {[%clk 0:00:20.8]} 46...
Rb1 {[%clk 0:00:19.1]} 47. Re3 {[%clk 0:00:19.2]} 47... Ra1 {[%clk 0:00:16.4]}
48. a3 {[%clk 0:00:18.9]} 48... Ke5 {[%clk 0:00:16.1]} 49. Rb3 {[%clk
0:00:18.6]} 49... Ra2 {[%clk 0:00:16.2]} 50. Rb5+ {[%clk 0:00:17.5]} 50... Kf4
{[%clk 0:00:15.8]} 51. Rb3 {[%clk 0:00:17.7]} 51... Kg5 {[%clk 0:00:15.9]} 52.
Rg3+ {[%clk 0:00:14.7]} 52... Kf6 {[%clk 0:00:14.5]} 53. Rb3 {[%clk 0:00:11.6]}
53... Ke5 {[%clk 0:00:07.5]} 54. Rb5+ {[%clk 0:00:11.7]} 54... Kf4 {[%clk
0:00:07.9]} 55. Rb3 {[%clk 0:00:12]} 55... Rc2 {[%clk 0:00:07.7]} 56. Re3 {[%clk
0:00:09.4]} 56... Rd2 {[%clk 0:00:07.2]} 57. Rb3 {[%clk 0:00:08.1]} 57... Rd1
{[%clk 0:00:07.6]} 58. Re3 {[%clk 0:00:06.8]} 58... Ra1 {[%clk 0:00:08]} 59. Rb3
{[%clk 0:00:07.3]} 59... Kg5 {[%clk 0:00:07.7]} 60. Rg3+ {[%clk 0:00:07.2]}
60... Kh4 {[%clk 0:00:05.7]} 61. Rb3 {[%clk 0:00:06]} 61... Ra2 {[%clk 0:00:06]}
62. Rb4 {[%clk 0:00:04.5]} 62... Kg5 {[%clk 0:00:05.9]} 63. Rb3 {[%clk
0:00:04.6]} 63... Kh4 {[%clk 0:00:05.7]} 64. Re3 {[%clk 0:00:04.5]} 64... Kh5
{[%clk 0:00:03.7]} 65. Kg3 {[%clk 0:00:03.8]} 65... Kg5 {[%clk 0:00:03.7]} 66.
h4+ {[%clk 0:00:04.2]} 66... Kf6 {[%clk 0:00:04.3]} 67. f3 {[%clk 0:00:03.7]}
67... Ke5 {[%clk 0:00:04.2]} 68. fxe4 {[%clk 0:00:03]} 68... f4+ {[%clk
0:00:04.6]} 69. Kf3 {[%clk 0:00:02.6]} 69... fxe3 {[%clk 0:00:05.2]} 70. Kxe3
{[%clk 0:00:02.9]} 70... Rxa3+ {[%clk 0:00:06]} 71. Kf2 {[%clk 0:00:03.2]} 71...
Kxe4 {[%clk 0:00:06.7]} 72. Kg2 {[%clk 0:00:03.4]} 72... Kf4 {[%clk 0:00:07.4]}
73. Kh2 {[%clk 0:00:03.9]} 73... Kg4 {[%clk 0:00:08.3]} 0-1

[Event "Early-Titled-Tuesday-Blitz-April-16-2024"]
[Site "Chess.com"]
[Date "2024.04.16"]
[Round "10"]
[White "sonicdravise"]
[Black "BardArtem"]
[Result "1-0"]
[WhiteElo "2627"]
[BlackElo "2831"]
[TimeControl "180+1"]
[EndTime "10:01:23 PDT"]
[Termination "sonicdravise won by resignation"]

1. d4 {[%clk 0:03:00.9]} 1... d5 {[%clk 0:02:59.5]} 2. c4 {[%clk 0:03:01.4]}
2... e6 {[%clk 0:02:57.5]} 3. Nc3 {[%clk 0:03:01.4]} 3... c5 {[%clk 0:02:57.9]}
4. cxd5 {[%clk 0:03:01.1]} 4... cxd4 {[%clk 0:02:58.1]} 5. Qa4+ {[%clk 0:03:00]}
5... Bd7 {[%clk 0:02:58.1]} 6. Qxd4 {[%clk 0:03:00.7]} 6... exd5 {[%clk
0:02:59]} 7. Qxd5 {[%clk 0:03:00.9]} 7... Nf6 {[%clk 0:02:58.8]} 8. Qd1 {[%clk
0:03:00.9]} 8... Nc6 {[%clk 0:02:59]} 9. Nf3 {[%clk 0:03:00.5]} 9... Bc5 {[%clk
0:02:59.1]} 10. e3 {[%clk 0:03:00.7]} 10... O-O {[%clk 0:02:59.5]} 11. Be2
{[%clk 0:03:01.1]} 11... Qe7 {[%clk 0:02:59.8]} 12. a3 {[%clk 0:02:59]} 12...
Rad8 {[%clk 0:02:59.6]} 13. Qc2 {[%clk 0:02:59.6]} 13... Rfe8 {[%clk 0:02:59.5]}
14. O-O {[%clk 0:02:59.6]} 14... Bd6 {[%clk 0:02:59.2]} 15. Rd1 {[%clk
0:02:57.7]} 15... Ne5 {[%clk 0:02:58.7]} 16. Nd4 {[%clk 0:02:50.1]} 16... Neg4
{[%clk 0:02:48.2]} 17. h3 {[%clk 0:02:45.5]} 17... Nxf2 {[%clk 0:02:19.4]} 18.
Kxf2 {[%clk 0:02:45.3]} 18... Qe5 {[%clk 0:02:19.4]} 19. Bf3 {[%clk 0:02:20]}
19... Qh2 {[%clk 0:02:12.5]} 20. Bd2 {[%clk 0:01:37.5]} 20... Bxh3 {[%clk
0:02:01.9]} 21. Rh1 {[%clk 0:01:25.5]} 21... Qg3+ {[%clk 0:01:55.2]} 22. Ke2
{[%clk 0:01:20]} 22... Bg4 {[%clk 0:01:36.5]} 23. Rag1 {[%clk 0:01:20.4]} 23...
Bc5 {[%clk 0:01:17.6]} 24. Bxg4 {[%clk 0:00:32.9]} 24... Nxg4 {[%clk 0:00:47.2]}
25. Qxh7+ {[%clk 0:00:31.5]} 25... Kf8 {[%clk 0:00:47.7]} 26. Qh8+ {[%clk
0:00:31.2]} 26... Ke7 {[%clk 0:00:48.2]} 27. Nf5+ {[%clk 0:00:31.6]} 27... Ke6
{[%clk 0:00:44.7]} 28. Qxe8+ {[%clk 0:00:29]} 28... Rxe8 {[%clk 0:00:45.6]} 29.
Nxg3 {[%clk 0:00:29]} 29... Kd7 {[%clk 0:00:44.6]} 30. Nce4 {[%clk 0:00:26.9]}
30... Bf8 {[%clk 0:00:38.6]} 31. Rd1 {[%clk 0:00:26]} 31... Kc6 {[%clk
0:00:37.8]} 32. Bc1 {[%clk 0:00:20.6]} 32... f5 {[%clk 0:00:37.9]} 33. Nf2
{[%clk 0:00:18.3]} 33... Ne5 {[%clk 0:00:35.5]} 34. Nxf5 {[%clk 0:00:15.8]}
34... b6 {[%clk 0:00:33.8]} 35. Nd4+ {[%clk 0:00:14.9]} 35... Kb7 {[%clk
0:00:34]} 36. Nd3 {[%clk 0:00:11.9]} 36... Nc4 {[%clk 0:00:32.7]} 37. Nc2 {[%clk
0:00:10.8]} 37... Nd6 {[%clk 0:00:31.7]} 38. Rhf1 {[%clk 0:00:10.8]} 38... Be7
{[%clk 0:00:30]} 39. Bd2 {[%clk 0:00:09.6]} 39... Ne4 {[%clk 0:00:30.5]} 40. Rf3
{[%clk 0:00:07.9]} 40... Bf6 {[%clk 0:00:29.6]} 41. b4 {[%clk 0:00:05.4]} 41...
Rc8 {[%clk 0:00:29.8]} 42. Rc1 {[%clk 0:00:05.1]} 42... Ka6 {[%clk 0:00:27.6]}
43. Nd4 {[%clk 0:00:04.7]} 43... Re8 {[%clk 0:00:26.7]} 44. b5+ {[%clk
0:00:03.7]} 44... Kb7 {[%clk 0:00:26.1]} 45. Rc6 {[%clk 0:00:03.7]} 45... Rh8
{[%clk 0:00:18.4]} 46. Ne6 {[%clk 0:00:01.9]} 46... Rh2 {[%clk 0:00:16.5]} 47.
Ne1 {[%clk 0:00:02.4]} 47... Rh8 {[%clk 0:00:15.8]} 48. Nd4 {[%clk 0:00:02.2]}
48... Re8 {[%clk 0:00:14.6]} 49. Kd3 {[%clk 0:00:02.5]} 49... Nc5+ {[%clk
0:00:14.8]} 50. Kc2 {[%clk 0:00:02.7]} 50... Ne4 {[%clk 0:00:15.1]} 51. Nd3
{[%clk 0:00:02.3]} 51... Rd8 {[%clk 0:00:15.4]} 52. Ne6 {[%clk 0:00:02.4]} 52...
Rd5 {[%clk 0:00:15.3]} 53. Nd4 {[%clk 0:00:02.4]} 53... a6 {[%clk 0:00:14.7]}
54. a4 {[%clk 0:00:02.4]} 54... Kb8 {[%clk 0:00:12.2]} 55. Re6 {[%clk
0:00:02.6]} 55... Kc8 {[%clk 0:00:11.5]} 56. Rxe4 {[%clk 0:00:02.8]} 56... Kd7
{[%clk 0:00:10.9]} 57. bxa6 {[%clk 0:00:02.8]} 57... Rh5 {[%clk 0:00:11.8]} 58.
a7 {[%clk 0:00:03.1]} 58... Rh8 {[%clk 0:00:12.3]} 59. Rxf6 {[%clk 0:00:02.6]}
59... gxf6 {[%clk 0:00:12.5]} 60. Rf4 {[%clk 0:00:03.2]} 60... Kc7 {[%clk
0:00:12.3]} 61. Nb5+ {[%clk 0:00:04.1]} 61... Kb7 {[%clk 0:00:13.2]} 62. Rxf6
{[%clk 0:00:04.5]} 62... Ka8 {[%clk 0:00:12.1]} 63. Rf7 {[%clk 0:00:04.2]} 63...
Rc8+ {[%clk 0:00:12.7]} 64. Rc7 {[%clk 0:00:04.3]} 64... Rd8 {[%clk 0:00:11.7]}
65. Nd4 {[%clk 0:00:03.5]} 65... b5 {[%clk 0:00:10.3]} 66. axb5 {[%clk
0:00:03.4]} 66... Rd5 {[%clk 0:00:08.1]} 67. Rc3 {[%clk 0:00:03.4]} 67... Kb7
{[%clk 0:00:07.9]} 68. b6 {[%clk 0:00:03.6]} 68... Ra5 {[%clk 0:00:07.9]} 69.
Rb3 {[%clk 0:00:03.8]} 69... Ra2+ {[%clk 0:00:07.9]} 70. Kd1 {[%clk 0:00:03.7]}
70... Ra1+ {[%clk 0:00:08.8]} 71. Ke2 {[%clk 0:00:04.2]} 71... Rg1 {[%clk
0:00:09.7]} 72. Nc5+ {[%clk 0:00:04.5]} 72... Kc8 {[%clk 0:00:08]} 73. b7+
{[%clk 0:00:05.1]} 73... Kd8 {[%clk 0:00:08.2]} 74. b8=Q+ {[%clk 0:00:05]} 74...
Ke7 {[%clk 0:00:09.1]} 75. Qe5+ {[%clk 0:00:05.2]} 1-0

[Event "Early-Titled-Tuesday-Blitz-April-16-2024"]
[Site "Chess.com"]
[Date "2024.04.16"]
[Round "10"]
[White "ChessSwole"]
[Black "ajeale2"]
[Result "0-1"]
[WhiteElo "2655"]
[BlackElo "2441"]
[TimeControl "180+1"]
[EndTime "10:01:33 PDT"]
[Termination "ajeale2 won by checkmate"]

1. d4 {[%clk 0:03:00.9]} 1... d5 {[%clk 0:02:56.8]} 2. Bf4 {[%clk 0:03:00.4]}
2... Nf6 {[%clk 0:02:52]} 3. e3 {[%clk 0:03:00.5]} 3... c5 {[%clk 0:02:52.3]} 4.
Nf3 {[%clk 0:02:59.5]} 4... Nc6 {[%clk 0:02:50.8]} 5. Nbd2 {[%clk 0:02:59.4]}
5... cxd4 {[%clk 0:02:46.8]} 6. exd4 {[%clk 0:03:00.3]} 6... e6 {[%clk 0:02:47]}
7. c3 {[%clk 0:02:56.4]} 7... Bd6 {[%clk 0:02:47]} 8. Bxd6 {[%clk 0:02:53.6]}
8... Qxd6 {[%clk 0:02:47]} 9. Bd3 {[%clk 0:02:54.2]} 9... O-O {[%clk 0:02:40.5]}
10. O-O {[%clk 0:02:54.2]} 10... e5 {[%clk 0:02:37.4]} 11. dxe5 {[%clk
0:02:55.1]} 11... Nxe5 {[%clk 0:02:37.7]} 12. Nxe5 {[%clk 0:02:55.8]} 12... Qxe5
{[%clk 0:02:38.4]} 13. Nf3 {[%clk 0:02:56.2]} 13... Qh5 {[%clk 0:02:38.7]} 14.
Nd4 {[%clk 0:02:53.2]} 14... Bg4 {[%clk 0:02:34.7]} 15. Qb3 {[%clk 0:02:47.7]}
15... Rae8 {[%clk 0:02:28.5]} 16. Qxb7 {[%clk 0:02:43.8]} 16... Re5 {[%clk
0:02:27.9]} 17. Rfe1 {[%clk 0:02:28.3]} 17... Rg5 {[%clk 0:02:22.3]} 18. f4
{[%clk 0:02:26.3]} 18... Bc8 {[%clk 0:02:15.8]} 19. Qb4 {[%clk 0:01:56]} 19...
Rxg2+ {[%clk 0:02:06.5]} 20. Kxg2 {[%clk 0:01:54.9]} 20... Qh3+ {[%clk
0:01:59.8]} 21. Kh1 {[%clk 0:01:44.9]} 21... Qxd3 {[%clk 0:01:42.8]} 22. Qb5
{[%clk 0:01:28.1]} 22... Qh3 {[%clk 0:01:40.8]} 23. Qf1 {[%clk 0:01:24.5]} 23...
Qh4 {[%clk 0:01:32.7]} 24. Qf3 {[%clk 0:01:20.9]} 24... Ne4 {[%clk 0:01:26.1]}
25. f5 {[%clk 0:01:02.9]} 25... Ba6 {[%clk 0:01:03.6]} 26. Re3 {[%clk
0:00:42.6]} 26... Nf2+ {[%clk 0:00:54]} 27. Kg2 {[%clk 0:00:41]} 27... Ng4
{[%clk 0:00:52.6]} 28. h3 {[%clk 0:00:33.1]} 28... Nxe3+ {[%clk 0:00:47.6]} 29.
Qxe3 {[%clk 0:00:34]} 29... h5 {[%clk 0:00:34.5]} 30. Re1 {[%clk 0:00:32.8]}
30... Rb8 {[%clk 0:00:32.6]} 31. b4 {[%clk 0:00:30.1]} 31... Bd3 {[%clk
0:00:19.9]} 32. Nf3 {[%clk 0:00:25.8]} 32... Be4 {[%clk 0:00:14.2]} 33. Re2
{[%clk 0:00:16.6]} 33... Qf6 {[%clk 0:00:14]} 34. Qf4 {[%clk 0:00:15.3]} 34...
Rc8 {[%clk 0:00:13.9]} 35. Re3 {[%clk 0:00:14]} 35... Rc4 {[%clk 0:00:11.6]} 36.
Kf2 {[%clk 0:00:12.9]} 36... Qa6 {[%clk 0:00:10.9]} 37. Qb8+ {[%clk 0:00:11.9]}
37... Rc8 {[%clk 0:00:09.8]} 38. Qe5 {[%clk 0:00:11.6]} 38... Qxa2+ {[%clk
0:00:09.8]} 39. Kg3 {[%clk 0:00:11.9]} 39... Qb1 {[%clk 0:00:09.1]} 40. f6
{[%clk 0:00:11.6]} 40... g6 {[%clk 0:00:07]} 41. Ng5 {[%clk 0:00:10.6]} 41...
Qg1+ {[%clk 0:00:06.3]} 42. Kh4 {[%clk 0:00:10.6]} 42... Qf2+ {[%clk 0:00:06.3]}
43. Qg3 {[%clk 0:00:10.5]} 43... Qxf6 {[%clk 0:00:06.3]} 44. Qe1 {[%clk
0:00:09.5]} 44... Rc4 {[%clk 0:00:06.3]} 45. Kg3 {[%clk 0:00:09.7]} 45... Qxg5+
{[%clk 0:00:05.9]} 46. Kf2 {[%clk 0:00:07.6]} 46... Qh4+ {[%clk 0:00:05.8]} 47.
Kf1 {[%clk 0:00:07.7]} 47... Qxe1+ {[%clk 0:00:05.4]} 48. Kxe1 {[%clk
0:00:08.6]} 48... f5 {[%clk 0:00:05.5]} 49. Rg3 {[%clk 0:00:07.7]} 49... Kf7
{[%clk 0:00:05.8]} 50. Kd2 {[%clk 0:00:08.1]} 50... Kf6 {[%clk 0:00:06.3]} 51.
h4 {[%clk 0:00:08.1]} 51... f4 {[%clk 0:00:06.1]} 52. Rg5 {[%clk 0:00:08.4]}
52... Bf5 {[%clk 0:00:05.6]} 53. Rg1 {[%clk 0:00:07.3]} 53... Re4 {[%clk
0:00:05.7]} 54. Ra1 {[%clk 0:00:07.2]} 54... Re7 {[%clk 0:00:05.5]} 55. Ra6+
{[%clk 0:00:07.4]} 55... Ke5 {[%clk 0:00:05.6]} 56. Ra5 {[%clk 0:00:06.9]} 56...
Ke4 {[%clk 0:00:06]} 57. Ra6 {[%clk 0:00:06.3]} 57... f3 {[%clk 0:00:06.4]} 58.
Ra1 {[%clk 0:00:06.3]} 58... Kf4 {[%clk 0:00:06.5]} 59. Rg1 {[%clk 0:00:06.4]}
59... Re2+ {[%clk 0:00:07]} 60. Kd1 {[%clk 0:00:06.3]} 60... Rg2 {[%clk
0:00:07]} 61. Rf1 {[%clk 0:00:06.6]} 61... Kg3 {[%clk 0:00:07.3]} 62. c4 {[%clk
0:00:06.4]} 62... f2 {[%clk 0:00:07.4]} 63. Ke2 {[%clk 0:00:05.1]} 63... dxc4
{[%clk 0:00:06.7]} 64. Ke3 {[%clk 0:00:05.6]} 64... Rg1 {[%clk 0:00:05.6]} 65.
Rxf2 {[%clk 0:00:05.9]} 65... Re1+ {[%clk 0:00:05.9]} 66. Re2 {[%clk 0:00:06.6]}
66... Rxe2+ {[%clk 0:00:06.3]} 67. Kxe2 {[%clk 0:00:07.5]} 67... Kxh4 {[%clk
0:00:06.6]} 68. b5 {[%clk 0:00:07]} 68... Bc8 {[%clk 0:00:05.7]} 69. Ke3 {[%clk
0:00:07.9]} 69... Bb7 {[%clk 0:00:05.9]} 70. Kf4 {[%clk 0:00:07.9]} 70... g5+
{[%clk 0:00:06.1]} 71. Ke3 {[%clk 0:00:08.8]} 71... g4 {[%clk 0:00:06.7]} 72.
Kf2 {[%clk 0:00:09.7]} 72... Kh3 {[%clk 0:00:05.9]} 73. Kg1 {[%clk 0:00:10.6]}
73... g3 {[%clk 0:00:06.2]} 74. b6 {[%clk 0:00:11.5]} 74... h4 {[%clk
0:00:06.7]} 75. bxa7 {[%clk 0:00:12.4]} 75... Kg4 {[%clk 0:00:06.6]} 76. Kf1
{[%clk 0:00:12.4]} 76... Ba8 {[%clk 0:00:07.5]} 77. Ke2 {[%clk 0:00:12.9]} 77...
h3 {[%clk 0:00:08.4]} 78. Kd2 {[%clk 0:00:12.3]} 78... h2 {[%clk 0:00:09.3]} 79.
Ke3 {[%clk 0:00:13.2]} 79... h1=Q {[%clk 0:00:09.9]} 80. Kd4 {[%clk 0:00:14.1]}
80... Qe4+ {[%clk 0:00:10.4]} 81. Kc3 {[%clk 0:00:15]} 81... Qd5 {[%clk
0:00:10.6]} 82. Kb4 {[%clk 0:00:15.9]} 82... Qb7+ {[%clk 0:00:11]} 83. Kc3
{[%clk 0:00:16.8]} 83... Qb3+ {[%clk 0:00:11]} 84. Kd2 {[%clk 0:00:17.7]} 84...
c3+ {[%clk 0:00:11.3]} 85. Ke3 {[%clk 0:00:18.6]} 85... c2+ {[%clk 0:00:11.4]}
86. Kd4 {[%clk 0:00:19.5]} 86... Qb4+ {[%clk 0:00:11.7]} 87. Ke5 {[%clk
0:00:20.4]} 87... c1=Q {[%clk 0:00:11.2]} 88. Kf6 {[%clk 0:00:21.3]} 88... Qcc5
{[%clk 0:00:11.3]} 89. Kf7 {[%clk 0:00:20.2]} 89... Qbb6 {[%clk 0:00:11.3]} 90.
Ke8 {[%clk 0:00:20.8]} 90... Qcc7 {[%clk 0:00:11.1]} 91. Kf8 {[%clk 0:00:21.1]}
91... Qcb7 {[%clk 0:00:11.6]} 92. Ke8 {[%clk 0:00:21.3]} 92... g2 {[%clk
0:00:12.2]} 93. Kf8 {[%clk 0:00:22.2]} 93... g1=Q {[%clk 0:00:12.8]} 94. Ke8
{[%clk 0:00:23.1]} 94... Qg3 {[%clk 0:00:13.3]} 95. Kf8 {[%clk 0:00:24]} 95...
Qgc7 {[%clk 0:00:12.8]} 96. Kg8 {[%clk 0:00:24.9]} 96... Qd7 {[%clk 0:00:13.3]}
97. Kf8 {[%clk 0:00:25.8]} 97... Qe7+ {[%clk 0:00:13.6]} 98. Kg8 {[%clk
0:00:26.7]} 98... Qec7 {[%clk 0:00:13.5]} 99. Kh8 {[%clk 0:00:27.6]} 99... Qcc8#
{[%clk 0:00:13.5]} 0-1

[Event "Early-Titled-Tuesday-Blitz-April-16-2024"]
[Site "Chess.com"]
[Date "2024.04.16"]
[Round "10"]
[White "MITerryble"]
[Black "TigrVShlyape"]
[Result "0-1"]
[WhiteElo "3047"]
[BlackElo "2946"]
[TimeControl "180+1"]
[EndTime "10:01:38 PDT"]
[Termination "TigrVShlyape won on time"]

1. Nf3 {[%clk 0:03:00.9]} 1... Nf6 {[%clk 0:02:54.1]} 2. e3 {[%clk 0:02:59.5]}
2... d5 {[%clk 0:02:53.5]} 3. b4 {[%clk 0:02:59.4]} 3... Bf5 {[%clk 0:02:52.3]}
4. Bb2 {[%clk 0:02:59.7]} 4... e6 {[%clk 0:02:52.6]} 5. a3 {[%clk 0:02:57.9]}
5... Nbd7 {[%clk 0:02:49.9]} 6. d4 {[%clk 0:02:44.1]} 6... c6 {[%clk 0:02:47.7]}
7. c4 {[%clk 0:02:43.5]} 7... Bd6 {[%clk 0:02:42.7]} 8. Nbd2 {[%clk 0:02:37]}
8... O-O {[%clk 0:02:39]} 9. Be2 {[%clk 0:02:34.4]} 9... a6 {[%clk 0:02:21.7]}
10. Nh4 {[%clk 0:02:33.3]} 10... Bg6 {[%clk 0:02:20.4]} 11. O-O {[%clk
0:02:31.4]} 11... Re8 {[%clk 0:02:12.9]} 12. Nxg6 {[%clk 0:02:29.3]} 12... hxg6
{[%clk 0:02:12.2]} 13. f4 {[%clk 0:02:29.9]} 13... dxc4 {[%clk 0:02:08.3]} 14.
Nxc4 {[%clk 0:02:29.4]} 14... Bf8 {[%clk 0:02:04.8]} 15. Bf3 {[%clk 0:02:22.8]}
15... Nb6 {[%clk 0:01:58.6]} 16. Na5 {[%clk 0:02:20.9]} 16... Qd7 {[%clk
0:01:53.3]} 17. Qb3 {[%clk 0:02:19.5]} 17... Nfd5 {[%clk 0:01:50.2]} 18. Rad1
{[%clk 0:02:08.5]} 18... Rad8 {[%clk 0:01:45.8]} 19. Bc1 {[%clk 0:02:06.2]}
19... Qc8 {[%clk 0:01:44.6]} 20. e4 {[%clk 0:02:04.6]} 20... Nc7 {[%clk
0:01:40.2]} 21. Be3 {[%clk 0:02:04.9]} 21... Nd7 {[%clk 0:01:36.9]} 22. Rc1
{[%clk 0:01:49.2]} 22... Qb8 {[%clk 0:01:35.3]} 23. Rfd1 {[%clk 0:01:49.3]}
23... Nf6 {[%clk 0:01:33.5]} 24. g3 {[%clk 0:01:46.5]} 24... Nb5 {[%clk
0:01:32.3]} 25. a4 {[%clk 0:01:43.9]} 25... Nc7 {[%clk 0:01:32.1]} 26. Kg2
{[%clk 0:01:41.1]} 26... Nd7 {[%clk 0:01:17.9]} 27. g4 {[%clk 0:01:35.9]} 27...
Nf6 {[%clk 0:01:10.8]} 28. h4 {[%clk 0:01:34.4]} 28... Rd7 {[%clk 0:01:06.2]}
29. h5 {[%clk 0:01:26.5]} 29... gxh5 {[%clk 0:01:04.5]} 30. gxh5 {[%clk
0:01:27.4]} 30... Kh8 {[%clk 0:01:01]} 31. Kf2 {[%clk 0:01:19.1]} 31... Ng8
{[%clk 0:01:01]} 32. Nc4 {[%clk 0:01:15.2]} 32... Qd8 {[%clk 0:00:53.5]} 33. Ne5
{[%clk 0:01:12.2]} 33... Nh6 {[%clk 0:00:39.2]} 34. Nxd7 {[%clk 0:01:01.6]}
34... Qxd7 {[%clk 0:00:39.5]} 35. Rg1 {[%clk 0:00:57.3]} 35... Qe7 {[%clk
0:00:38.7]} 36. Rb1 {[%clk 0:00:42.7]} 36... Qh4+ {[%clk 0:00:38.1]} 37. Ke2
{[%clk 0:00:42.8]} 37... Rd8 {[%clk 0:00:38.2]} 38. Rh1 {[%clk 0:00:41.9]} 38...
Qf6 {[%clk 0:00:37.1]} 39. Qc4 {[%clk 0:00:39.4]} 39... Qe7 {[%clk 0:00:32.2]}
40. Qc3 {[%clk 0:00:38.9]} 40... Qf6 {[%clk 0:00:31.5]} 41. Qc4 {[%clk
0:00:33.4]} 41... Qe7 {[%clk 0:00:31.8]} 42. Bf2 {[%clk 0:00:31.8]} 42... Qd6
{[%clk 0:00:29.2]} 43. Rbg1 {[%clk 0:00:23.6]} 43... Ne8 {[%clk 0:00:26.6]} 44.
Be3 {[%clk 0:00:20.5]} 44... Qd7 {[%clk 0:00:24.4]} 45. Rb1 {[%clk 0:00:18.3]}
45... Nd6 {[%clk 0:00:23.4]} 46. Qd3 {[%clk 0:00:15.2]} 46... Qe7 {[%clk
0:00:22.6]} 47. Rh2 {[%clk 0:00:14.4]} 47... Ne8 {[%clk 0:00:22.1]} 48. Rg2
{[%clk 0:00:14.3]} 48... Nf6 {[%clk 0:00:21.1]} 49. Qc4 {[%clk 0:00:13.6]} 49...
Qd7 {[%clk 0:00:20]} 50. b5 {[%clk 0:00:12.4]} 50... cxb5 {[%clk 0:00:19.6]} 51.
axb5 {[%clk 0:00:13.3]} 51... Rc8 {[%clk 0:00:19.9]} 52. Qd3 {[%clk 0:00:13.5]}
52... axb5 {[%clk 0:00:20.3]} 53. Qxb5 {[%clk 0:00:13.6]} 53... Qc7 {[%clk
0:00:19.8]} 54. Kf1 {[%clk 0:00:10.8]} 54... Qc3 {[%clk 0:00:17]} 55. Qb3 {[%clk
0:00:08.9]} 55... Qa5 {[%clk 0:00:15.9]} 56. Qxb7 {[%clk 0:00:05.2]} 56... Rc3
{[%clk 0:00:16]} 57. Re2 {[%clk 0:00:05.5]} 57... Qa3 {[%clk 0:00:15.3]} 58. Qb8
{[%clk 0:00:02.2]} 58... Rxe3 {[%clk 0:00:13.2]} 59. Qxf8+ {[%clk 0:00:02]}
59... Kh7 {[%clk 0:00:13.2]} 60. Rxe3 {[%clk 0:00:02.9]} 60... Qxe3 {[%clk
0:00:12.8]} 61. Kg2 {[%clk 0:00:03.1]} 61... Qxf4 {[%clk 0:00:11.3]} 62. Rf1
{[%clk 0:00:02.2]} 62... Qg5+ {[%clk 0:00:11.2]} 63. Kf2 {[%clk 0:00:01.8]}
63... Qd2+ {[%clk 0:00:11.3]} 64. Kg3 {[%clk 0:00:01.9]} 64... Qxd4 {[%clk
0:00:11.6]} 65. Qa3 {[%clk 0:00:01.2]} 65... Qe5+ {[%clk 0:00:11.5]} 66. Kg2
{[%clk 0:00:01.8]} 66... Nxe4 {[%clk 0:00:11]} 67. Qe3 {[%clk 0:00:02]} 67...
Qg5+ {[%clk 0:00:11.3]} 68. Qxg5 {[%clk 0:00:02]} 68... Nxg5 {[%clk 0:00:11.9]}
69. Be2 {[%clk 0:00:02.9]} 69... Nf5 {[%clk 0:00:11.8]} 70. Ra1 {[%clk
0:00:02.8]} 70... Kh6 {[%clk 0:00:11.9]} 71. Ra7 {[%clk 0:00:02.9]} 71... g6
{[%clk 0:00:11.4]} 72. hxg6 {[%clk 0:00:02.7]} 72... Kxg6 {[%clk 0:00:11.8]} 73.
Ra8 {[%clk 0:00:03.6]} 73... Kf6 {[%clk 0:00:12.1]} 74. Kf2 {[%clk 0:00:03.8]}
74... Ne4+ {[%clk 0:00:11.9]} 75. Ke1 {[%clk 0:00:04.2]} 75... Nd4 {[%clk
0:00:11.4]} 76. Bd3 {[%clk 0:00:04.6]} 76... Nc5 {[%clk 0:00:11.7]} 77. Bc4
{[%clk 0:00:04.7]} 77... Ke5 {[%clk 0:00:11.8]} 78. Rd8 {[%clk 0:00:04]} 78...
f5 {[%clk 0:00:11.6]} 79. Kf2 {[%clk 0:00:03.8]} 79... Ne4+ {[%clk 0:00:12]} 80.
Ke3 {[%clk 0:00:04.1]} 80... f4+ {[%clk 0:00:12.4]} 81. Kd3 {[%clk 0:00:04.1]}
81... Nf5 {[%clk 0:00:11.3]} 82. Re8 {[%clk 0:00:01.8]} 82... Ng5 {[%clk
0:00:10.6]} 83. Rf8 {[%clk 0:00:01.5]} 83... Ne4 {[%clk 0:00:10.2]} 84. Ke2
{[%clk 0:00:01.7]} 84... Nd4+ {[%clk 0:00:09.2]} 85. Kd3 {[%clk 0:00:02.1]}
85... Nc5+ {[%clk 0:00:09.5]} 86. Kc3 {[%clk 0:00:02.1]} 86... f3 {[%clk
0:00:09.6]} 87. Bd3 {[%clk 0:00:01.6]} 87... Nf5 {[%clk 0:00:08]} 0-1